bitfinex-derivatives/quotes_SOLF0:USTF0_20250613
["timestamp","ask_amount","ask_price","bid_price","bid_amount"]
[1749854307856,5.44887468,147.29,147.26,0.05028221]
[1749854308057,6.7867,147.28,147.26,0.05028221]
[1749854309067,0.04361228,147.29,147.26,0.05028221]
[1749854309564,5.44836522,147.29,147.26,0.05028221]
[1749854309869,6.7863,147.28,147.26,0.05028221]
[1749854310069,0.04361228,147.29,147.26,0.05028221]
[1749854310458,5.44822491,147.29,147.26,0.05028221]
[1749854310771,5.40461263,147.28,147.26,0.05028221]
[1749854311068,0.04361228,147.29,147.26,0.05028221]
[1749854311472,5.44832667,147.29,147.26,0.05028221]
[1749854311663,6.7868,147.27,147.26,0.05028221]
[1749854311869,5.39113807,147.27,147.2,33.7]
[1749854312060,5.39113807,147.26,147.2,33.7]
[1749854312262,6.788,147.25,147.2,33.7]
[1749854312867,6.84013347,147.24,147.22,6.7888]
[1749854313973,6.84013347,147.24,147.21,6.83630934]
[1749854314273,6.84013347,147.24,147.21,0.04680934]
[1749854314668,6.7889,147.23,147.21,0.04680934]
[1749854316978,6.7891,147.22,147.21,0.04680934]
[1749854317174,0.05193347,147.24,147.21,0.04680934]
[1749854317776,0.05193347,147.24,147.22,6.789]
[1749854318475,0.05193347,147.24,147.23,6.7886]
[1749854318780,0.05193347,147.24,147.21,0.04680934]
[1749854318980,0.05193347,147.24,147.22,6.7889]
[1749854319673,0.05193347,147.24,147.23,6.7886]
[1749854337591,3.347e-05,147.24,147.23,6.7886]
[1749854343097,3.347e-05,147.24,147.21,33.74680934]
[1749854344806,3.347e-05,147.24,147.23,6.7886]
[1749854354310,35.9069,147.34,147.22,6.7626]
[1749854354505,7.95944647,147.33,147.22,6.7626]
[1749854354710,5.40961994,147.32,147.22,6.7626]
[1749854354904,35.9069,147.34,147.3,6.785]
[1749854355107,12.19235413,147.33,147.3,6.785]
[1749854355313,5.40835413,147.32,147.31,0.04357576]
[1749854356817,6.83037938,147.33,147.31,6.82847576]
[1749854357817,0.04637938,147.33,147.31,6.82847576]
[1749854358415,0.04637938,147.33,147.32,6.7845]
[1749854358618,5.45689912,147.33,147.32,6.7845]
[1749854362409,5.45689912,147.33,147.31,6.82827576]
[1749854362613,0.04637938,147.33,147.31,6.82827576]
[1749854362814,12.24286074,147.33,147.31,0.04357576]
[1749854363015,6.83037938,147.33,147.31,0.04357576]
[1749854366331,6.7845,147.32,147.31,0.04357576]
[1749854366525,12.19690261,147.32,147.31,0.04357576]
[1749854367124,6.7845,147.32,147.31,0.04357576]
[1749854367820,12.19731758,147.32,147.31,0.04357576]
[1749854368425,13.19731758,147.32,147.31,0.04357576]
[1749854370129,6.41281758,147.32,147.24,33.74]
[1749854370323,9.89211758,147.31,147.24,33.74]
[1749854370520,6.7866,147.28,147.25,6.7873]
[1749854370721,4.4793,147.31,147.25,6.7873]
[1749854370922,5.41568563,147.3,147.25,6.7873]
[1749854371121,6.7867,147.28,147.26,0.05001875]
[1749854371327,0.04307048,147.29,147.26,0.05001875]
[1749854371525,5.41338088,147.28,147.24,33.74]
[1749854371725,0.04307048,147.29,147.24,33.74]
[1749854371726,6.7875,147.26,147.24,33.74]
[1749854372034,6.7875,147.26,147.23,6.7883]
[1749854372530,6.83323608,147.26,147.23,6.83993984]
[1749854372932,6.7877,147.25,147.23,0.05163984]
[1749854374535,6.7877,147.25,147.23,6.84013984]
[1749854375636,6.83323608,147.26,147.24,6.7882]
[1749854376830,6.83323608,147.26,147.23,6.84003984]
[1749854378138,6.7877,147.25,147.23,6.84003984]
[1749854378331,6.7877,147.25,147.23,0.05163984]
[1749854379237,6.7877,147.25,147.23,6.84003984]
[1749854380238,6.83313608,147.26,147.23,6.84003984]
[1749854381837,6.83313608,147.26,147.24,6.7881]
[1749854382832,0.04573608,147.26,147.24,6.7881]
[1749854385041,0.04573608,147.26,147.23,0.05163984]
[1749854385238,5.43438756,147.26,147.23,0.05163984]
[1749854385841,6.788,147.25,147.23,6.84023984]
[1749854386541,6.83323608,147.26,147.24,6.7882]
[1749854386944,0.04573608,147.26,147.23,0.05163984]
[1749854387139,5.43611918,147.26,147.23,0.05163984]
[1749854387751,6.7878,147.25,147.23,6.84003984]
[1749854388047,0.04573608,147.26,147.23,6.84003984]
[1749854388245,5.43518563,147.26,147.23,0.05163984]
[1749854388549,12.22268563,147.26,147.23,0.05163984]
[1749854388745,0.04573608,147.26,147.23,0.05163984]
[1749854388946,5.4345119,147.26,147.23,0.05163984]
[1749854389140,0.04573608,147.26,147.23,0.05163984]
[1749854389946,0.04573608,147.26,147.24,6.7878]
[1749854390752,6.83303608,147.26,147.24,6.7878]
[1749854391049,0.04573608,147.26,147.23,6.84003984]
[1749854391550,6.83313608,147.26,147.23,6.84003984]
[1749854393855,6.83313608,147.26,147.24,6.7881]
[1749854394853,0.04573608,147.26,147.24,6.7881]
[1749854395357,6.83303608,147.26,147.24,6.7881]
[1749854396454,0.04573608,147.26,147.24,6.7881]
[1749854397854,6.83303608,147.26,147.24,6.7881]
[1749854398559,6.83303608,147.26,147.23,6.84003984]
[1749854398860,0.04573608,147.26,147.23,6.84003984]
[1749854399158,0.04573608,147.26,147.24,6.7881]
[1749854399457,0.04573608,147.26,147.23,0.05163984]
[1749854399958,0.04573608,147.26,147.23,6.84003984]
[1749854400256,6.7878,147.25,147.23,6.84003984]
[1749854401160,6.83313608,147.26,147.23,6.84003984]
[1749854401862,6.83313608,147.26,147.24,6.7881]
[1749854402356,6.7878,147.25,147.23,0.05163984]
[1749854402551,6.7878,147.25,147.23,6.84003984]
[1749854403961,6.7882,147.24,147.23,0.05163984]
[1749854406565,6.7879,147.25,147.23,0.05163984]
[1749854409863,6.7879,147.25,147.23,6.84023984]
[1749854410067,0.04573608,147.26,147.23,0.05163984]
[1749854410656,12.17612991,147.25,147.23,0.05163984]
[1749854410856,5.39042963,147.24,147.23,0.05163984]
[1749854412269,5.39209245,147.24,147.23,0.05163984]
[1749854412470,12.18029245,147.24,147.23,0.05163984]
[1749854413665,7.93562163,147.24,147.19,6.7903]
[1749854413870,7.93548517,147.23,147.19,6.7903]
[1749854414064,5.39209245,147.22,147.19,6.7903]
[1749854414267,46.94644043,147.25,147.19,6.7903]
[1749854414268,5.39209245,147.21,147.19,6.7903]
[1749854414468,46.94644043,147.25,147.19,6.7903]
[1749854414674,0.052329,147.23,147.21,0.04487213]
[1749854414859,7.94652773,147.22,147.21,0.04487213]
[1749854415066,5.40320206,147.22,147.21,0.04487213]
[1749854415265,10.08857549,147.22,147.21,0.04487213]
[1749854415466,5.40320206,147.22,147.21,0.04487213]
[1749854415772,16.87770757,147.22,147.21,0.04487213]
[1749854416071,12.19230206,147.22,147.21,0.04487213]
[1749854416260,16.87765253,147.22,147.21,0.04487213]
[1749854416465,12.19230206,147.22,147.21,0.04487213]
[1749854416665,19.41765875,147.22,147.21,0.04487213]
[1749854417059,6.7903,147.2,147.15,33.7]
[1749854417572,6.7903,147.2,147.17,6.7912]
[1749854418073,6.8394152,147.2,147.17,6.83569138]
[1749854418377,6.7905,147.19,147.17,0.04449138]
[1749854420074,6.7905,147.19,147.17,6.83569138]
[1749854420779,6.7905,147.19,147.17,0.04449138]
[1749854421076,0.0491152,147.2,147.17,0.04449138]
[1749854421579,6.7908,147.19,147.17,0.04449138]
[1749854422278,6.7909,147.18,147.17,0.04449138]
[1749854423674,6.7907,147.19,147.17,0.04449138]
[1749854425879,6.8393152,147.2,147.17,0.04449138]
[1749854426178,0.0491152,147.2,147.17,0.04449138]
[1749854426371,6.8391152,147.2,147.17,6.83569138]
[1749854427274,0.0491152,147.2,147.18,6.7909]
[1749854428187,6.8392152,147.2,147.18,6.7909]
[1749854428583,6.8392152,147.2,147.17,6.83569138]
[1749854432282,6.8392152,147.2,147.17,6.83569138]
[1749854435298,6.8392152,147.2,147.18,6.7909]
[1749854436175,6.8392152,147.2,147.17,6.83569138]
[1749854439078,6.7907,147.19,147.17,6.83569138]
[1749854439280,6.7907,147.19,147.17,0.04449138]
[1749854440380,6.7909,147.18,147.17,0.04449138]
[1749854443987,6.7907,147.19,147.17,0.04449138]
[1749854444188,0.0491152,147.2,147.17,0.04449138]
[1749854444485,6.8393152,147.2,147.17,6.83569138]
[1749854446088,6.8393152,147.2,147.18,6.7908]
[1749854446596,5.37244455,147.19,147.18,6.7908]
[1749854447192,6.8393152,147.2,147.18,6.7908]
[1749854447999,4.66966811,147.19,147.17,0.04449138]
[1749854448292,0.0491152,147.2,147.17,0.04449138]
[1749854448792,0.0491152,147.2,147.17,33.76449138]
[1749854449187,0.0491152,147.2,147.19,6.7905]
[1749854450299,6.7876,147.26,147.23,6.7884]
[1749854450590,7.19951865,147.25,147.23,6.7884]
[1749854450783,6.7886,147.23,147.17,33.72]
[1749854450985,6.34124043,147.26,147.17,33.72]
[1749854451190,12.58001095,147.25,147.17,33.72]
[1749854451490,0.04292732,147.23,147.2,6.83825708]
[1749854451792,5.37830092,147.22,147.2,6.83825708]
[1749854452395,0.04292732,147.23,147.2,6.83825708]
[1749854452693,12.16904803,147.22,147.2,6.83825708]
[1749854452896,6.7892,147.22,147.2,0.04835708]
[1749854453692,6.7895,147.21,147.2,0.04835708]
[1749854455189,5.38413416,147.21,147.2,0.04835708]
[1749854460797,12.17363416,147.21,147.2,0.04835708]
[1749854461693,16.84782199,147.21,147.2,0.04835708]
[1749854461999,16.84801696,147.21,147.2,0.04835708]
[1749854462197,12.17363416,147.21,147.2,0.04835708]
[1749854462397,19.38369964,147.21,147.2,0.04835708]
[1749854462597,16.84810522,147.21,147.2,0.04835708]
[1749854462809,12.59422907,147.21,147.16,6.7916]
[1749854462992,10.05860522,147.2,147.14,33.7]
[1749854463197,5.38413416,147.19,147.14,33.7]
[1749854463397,12.17533416,147.18,147.15,6.7921]
[1749854463599,6.7912,147.18,147.15,6.7921]
[1749854463799,6.84148382,147.18,147.15,6.83533729]
[1749854464095,5.39121887,147.17,147.15,6.83533729]
[1749854464301,6.84148382,147.18,147.15,6.83533729]
[1749854465606,6.84148382,147.18,147.15,0.04323729]
[1749854465607,6.7914,147.17,147.15,0.04323729]
[1749854465901,6.7916,147.17,147.15,0.04323729]
[1749854466704,0.05028382,147.18,147.17,6.7914]
[1749854467103,40.06124043,147.25,147.15,6.82613729]
[1749854467302,46.84934043,147.25,147.15,15.25077368]
[1749854467504,7.19240397,147.24,147.15,6.7829]
[1749854467695,4.66701261,147.23,147.15,6.7829]
[1749854467899,6.7882,147.24,147.2,6.7896]
[1749854468101,0.05121228,147.23,147.21,0.04333351]
[1749854468296,0.05121228,147.23,147.21,6.83253351]
[1749854468507,0.05121228,147.23,147.21,0.04333351]
[1749854469008,0.05121228,147.23,147.22,6.7891]
[1749854471214,5.43859369,147.23,147.22,6.7891]
[1749854476309,0.05121228,147.23,147.22,6.7891]
[1749854476612,33.7,147.28,147.26,6.787]
[1749854476812,5.38753302,147.27,147.26,6.787]
[1749854479219,33.75053178,147.28,147.27,6.7868]
[1749854479516,39.13070059,147.28,147.27,6.7868]
[1749854480713,33.75053178,147.28,147.26,6.7871]
[1749854482016,33.75053178,147.28,147.25,6.83623286]
[1749854482319,6.7868,147.27,147.25,0.04873286]
[1749854482715,33.75053178,147.28,147.25,0.04873286]
[1749854482911,40.53713178,147.28,147.25,6.83643286]
[1749854483315,33.75053178,147.28,147.25,6.83643286]
[1749854484621,5.39136017,147.27,147.25,6.83643286]
[1749854484822,12.17816017,147.27,147.25,6.83643286]
[1749854485018,6.7868,147.27,147.25,6.83643286]
[1749854486322,6.7868,147.27,147.25,0.04873286]
[1749854491024,33.75053178,147.28,147.25,0.04873286]
[1749854491025,6.7872,147.26,147.25,0.04873286]
[1749854491226,5.39127857,147.26,147.19,33.7]
[1749854491416,33.7,147.28,147.19,33.7]
[1749854491621,6.788,147.25,147.22,6.7888]
[1749854492226,6.84013896,147.25,147.22,6.839722]
[1749854493122,6.7882,147.24,147.22,0.050922]
[1749854494729,6.7882,147.24,147.22,6.840022]
[1749854495831,6.7882,147.24,147.22,0.050922]
[1749854503340,4.70113832,147.23,147.22,0.050922]
[1749854503536,7.24134352,147.23,147.17,85.63021565]
[1749854503737,33.7,147.24,147.19,6.7902]
[1749854503941,12.62502882,147.23,147.19,6.7902]
[1749854504141,6.7895,147.22,147.19,6.7902]
[1749854504342,4.70150014,147.21,147.19,6.7902]
[1749854504541,0.05181807,147.21,147.19,6.84116385]
[1749854505438,6.84141807,147.21,147.19,6.84116385]
[1749854508046,6.79,147.2,147.19,0.05096385]
[1749854508743,11.4917671,147.2,147.19,0.05096385]
[1749854508945,6.79,147.2,147.19,0.05096385]
[1749854509337,11.49175913,147.2,147.19,0.05096385]
[1749854509739,11.48706361,147.2,147.19,0.05096385]
[1749854509934,6.79,147.2,147.19,0.05096385]
[1749854510146,11.48706701,147.2,147.19,0.05096385]
[1749854510351,6.79,147.2,147.19,0.05096385]
[1749854510547,11.48706943,147.2,147.19,0.05096385]
[1749854511148,11.4870495,147.2,147.19,0.05096385]
[1749854511447,16.86448374,147.2,147.19,0.05096385]
[1749854511650,16.86448615,147.2,147.19,0.05096385]
[1749854512350,6.79,147.2,147.19,0.05096385]
[1749854513054,12.17180459,147.2,147.19,0.05096385]
[1749854513243,6.79,147.2,147.19,0.05096385]
[1749854520659,6.84161807,147.21,147.19,0.05096385]
[1749854521149,0.05181807,147.21,147.19,0.05096385]
[1749854522345,0.05181807,147.21,147.2,6.79]
[1749854522550,33.7,147.27,147.2,33.7]
[1749854522750,6.7865,147.28,147.25,6.7874]
[1749854522957,5.37203033,147.27,147.25,6.7874]
[1749854523358,40.0257616,147.3,147.25,6.7874]
[1749854523557,5.41767107,147.29,147.26,0.04520783]
[1749854523859,5.37205752,147.28,147.26,0.04520783]
[1749854524056,5.37205752,147.27,147.26,0.04520783]
[1749854524453,5.37205752,147.28,147.26,0.04520783]
[1749854524654,5.37205752,147.27,147.26,0.04520783]
[1749854525552,5.37205752,147.28,147.26,0.04520783]
[1749854525756,12.15885752,147.27,147.26,0.04520783]
[1749854527053,5.37205752,147.27,147.26,0.04520783]
[1749854529656,0.04561355,147.29,147.26,0.04520783]
[1749854529862,5.39455589,147.28,147.26,0.04520783]
[1749854530162,0.04561355,147.29,147.27,6.7867]
[1749854530561,5.43955224,147.29,147.27,6.7867]
[1749854531561,12.22555224,147.29,147.26,6.83220783]
[1749854531759,6.83161355,147.29,147.26,6.83220783]
[1749854532156,6.83161355,147.29,147.27,6.7867]
[1749854535463,0.04561355,147.29,147.27,6.7867]
[1749854535860,0.04561355,147.29,147.28,6.7863]
[1749854539658,0.04561355,147.29,147.27,6.7865]
[1749854540565,0.04561355,147.29,147.28,6.7863]
[1749854541369,1.0,147.32,147.31,6.7849]
[1749854547574,1.0,147.32,147.3,0.04815565]
[1749854548166,6.7849,147.31,147.3,0.04815565]
[1749854550478,7.7845,147.32,147.3,0.04815565]
[1749854552281,6.7849,147.31,147.3,0.04815565]
[1749854557481,11.49374249,147.31,147.3,0.04815565]
[1749854558178,11.49371178,147.31,147.3,0.04815565]
[1749854558883,6.7849,147.31,147.3,0.04815565]
[1749854559181,11.48875731,147.31,147.3,0.04815565]
[1749854560978,11.48881874,147.31,147.3,0.04815565]
[1749854561386,11.48875731,147.31,147.3,0.04815565]
[1749854561588,6.7849,147.31,147.3,0.04815565]
[1749854561794,11.48875731,147.31,147.3,0.04815565]
[1749854562286,11.48878803,147.31,147.3,0.04815565]
[1749854563179,11.50001721,147.31,147.3,0.04815565]
[1749854563390,16.89976493,147.31,147.3,0.04815565]
[1749854563597,16.8997957,147.31,147.3,0.04815565]
[1749854563883,12.18464772,147.31,147.3,0.04815565]
[1749854564082,16.8997962,147.31,147.3,0.04815565]
[1749854564587,16.89975217,147.31,147.3,0.04815565]
[1749854564781,16.89975553,147.31,147.3,0.04815565]
[1749854564987,12.18464772,147.31,147.3,0.04815565]
[1749854565188,16.89975556,147.31,147.3,0.04815565]
[1749854565386,16.89975577,147.31,147.3,0.04815565]
[1749854565591,12.18464772,147.31,147.3,0.04815565]
[1749854565790,6.7862,147.29,147.26,6.7871]
[1749854566891,6.83107168,147.29,147.26,6.83675781]
[1749854567691,6.83107168,147.29,147.27,6.7868]
[1749854571298,0.04487168,147.29,147.27,6.7868]
[1749854571596,0.04487168,147.29,147.28,6.7863]
[1749854581102,6.33856578,147.35,147.32,6.7844]
[1749854581300,12.68860953,147.34,147.32,6.7844]
[1749854581502,10.14708814,147.33,147.27,33.66]
[1749854581700,5.4168288,147.32,147.31,6.7847]
[1749854583006,5.4168288,147.32,147.3,6.83135307]
[1749854583208,6.83509237,147.33,147.3,6.83135307]
[1749854583407,10.14874023,147.32,147.3,6.83135307]
[1749854583607,6.83509237,147.33,147.3,6.83135307]
[1749854583803,5.41865361,147.32,147.31,6.7849]
[1749854584307,10.15004301,147.32,147.31,6.7849]
[1749854584501,5.41865361,147.32,147.31,6.7849]
[1749854585510,5.41865361,147.32,147.3,6.83135307]
[1749854585703,6.83509237,147.33,147.3,6.83135307]
[1749854585903,5.42078129,147.32,147.3,6.83135307]
[1749854586207,6.83509237,147.33,147.31,6.7848]
[1749854586408,5.42043443,147.32,147.3,0.04615307]
[1749854586608,6.83509237,147.33,147.3,6.83115307]
[1749854586807,5.42043443,147.32,147.3,6.83115307]
[1749854587010,6.83509237,147.33,147.3,6.83115307]
[1749854587201,5.42045055,147.32,147.3,6.83115307]
[1749854587400,6.83509237,147.33,147.3,6.83115307]
[1749854587602,5.4204437,147.32,147.31,6.7849]
[1749854589909,6.83509237,147.33,147.31,6.7849]
[1749854590113,0.05109237,147.33,147.32,6.7845]
[1749854590306,5.47080405,147.33,147.32,6.7845]
[1749854593118,5.47080405,147.33,147.31,6.7847]
[1749854593419,0.05109237,147.33,147.31,6.7847]
[1749854594110,6.83509237,147.33,147.31,6.7847]
[1749854594315,4.73594088,147.32,147.31,6.7847]
[1749854594624,10.15480104,147.32,147.31,6.7847]
[1749854595222,10.15480104,147.32,147.3,0.04615307]
[1749854595223,12.20336016,147.32,147.3,0.04615307]
[1749854595423,6.7845,147.32,147.3,0.04615307]
[1749854596028,10.15517858,147.31,147.3,0.04615307]
[1749854596325,10.15536606,147.31,147.3,0.04615307]
[1749854597128,5.41910506,147.31,147.3,0.04615307]
[1749854600823,5.41910506,147.31,147.3,6.83155307]
[1749854603033,7.83529237,147.33,147.3,6.83155307]
[1749854603231,5.42581826,147.32,147.31,6.7849]
[1749854603531,1.05109237,147.33,147.31,6.7849]
[1749854603832,5.42576744,147.32,147.31,6.7849]
[1749854609126,1.05109237,147.33,147.32,6.7845]
[1749854609541,1.05109237,147.33,147.31,33.66]
[1749854609739,5.42617035,147.32,147.3,0.04615307]
[1749854610036,1.05109237,147.33,147.3,0.04615307]
[1749854610037,12.21107035,147.31,147.3,0.04615307]
[1749854610630,16.93464223,147.31,147.3,0.04615307]
[1749854610945,16.93476,147.31,147.3,0.04615307]
[1749854611242,16.93476241,147.31,147.3,0.04615307]
[1749854611634,16.93591483,147.31,147.3,0.04615307]
[1749854611834,12.21222277,147.31,147.3,0.04615307]
[1749854614339,14.76033575,147.31,147.3,0.04615307]
[1749854614638,16.94428957,147.31,147.3,0.04615307]
[1749854615139,12.21222277,147.31,147.3,0.04615307]
[1749854615331,16.93720697,147.31,147.3,0.04615307]
[1749854616034,16.93721902,147.31,147.3,0.04615307]
[1749854616642,12.21222277,147.31,147.3,0.04615307]
[1749854616838,11.5098842,147.31,147.3,0.04615307]
[1749854617033,11.50988179,147.31,147.3,0.04615307]
[1749854617234,11.5098842,147.31,147.3,0.04615307]
[1749854617533,6.7849,147.31,147.3,0.04615307]
[1749854617840,11.5098842,147.31,147.3,0.04615307]
[1749854618041,11.50988662,147.31,147.3,0.04615307]
[1749854618239,11.50995097,147.31,147.3,0.04615307]
[1749854618438,16.93276292,147.31,147.3,0.04615307]
[1749854618831,12.20771195,147.31,147.3,0.04615307]
[1749854619039,16.93269857,147.31,147.3,0.04615307]
[1749854619240,16.93269374,147.31,147.3,0.04615307]
[1749854619641,16.93269615,147.31,147.3,0.04615307]
[1749854619838,16.93269374,147.31,147.3,0.04615307]
[1749854620138,16.93269615,147.31,147.3,0.04615307]
[1749854620342,16.93269374,147.31,147.3,0.04615307]
[1749854620541,12.20771195,147.31,147.3,0.04615307]
[1749854620746,16.9327082,147.31,147.3,0.04615307]
[1749854621745,10.1478082,147.31,147.3,6.83155307]
[1749854621949,1.05109237,147.33,147.3,0.04615307]
[1749854622743,1.05109237,147.33,147.32,6.7845]
[1749854622942,0.71174739,147.33,147.32,6.7845]
[1749854633462,4.739e-05,147.33,147.32,6.7845]
[1749854642282,6.81e-06,147.34,147.33,6.784]
[1749854642482,6.81e-06,147.34,147.33,40.424]
[1749854654382,6.81e-06,147.34,147.33,33.64]
[1749854654885,6.81e-06,147.34,147.33,40.424]
[1749854657888,6.81e-06,147.34,147.33,33.64]
[1749854659884,6.78360681,147.34,147.3,33.66615307]
[1749854660186,6.78360681,147.34,147.32,6.7842]
[1749854661888,6.784,147.33,147.31,6.7847]
[1749854662888,6.78380681,147.34,147.31,6.7847]
[1749854663187,6.81e-06,147.34,147.32,6.7844]
[1749854665091,6.81e-06,147.34,147.33,6.784]
[1749854665388,5.43203542,147.34,147.33,6.784]
[1749854666394,5.43203542,147.34,147.32,6.7843]
[1749854666596,6.81e-06,147.34,147.32,6.7843]
[1749854667689,6.78360681,147.34,147.31,6.7848]
[1749854669384,6.7843,147.33,147.3,40.45135307]
[1749854669689,6.7843,147.33,147.3,33.66615307]
[1749854669888,6.81e-06,147.34,147.3,33.66615307]
[1749854670098,5.42845438,147.33,147.31,6.7846]
[1749854670394,6.78380681,147.34,147.3,33.66615307]
[1749854670692,5.42788483,147.33,147.32,6.7844]
[1749854673794,6.81e-06,147.34,147.32,6.7844]
[1749854674186,5.4262281,147.33,147.32,6.7844]
[1749854674386,6.81e-06,147.34,147.32,6.7844]
[1749854677392,6.81e-06,147.34,147.3,33.66615307]
[1749854677393,6.81e-06,147.34,147.33,6.784]
[1749854680202,5.42408787,147.34,147.33,6.784]
[1749854680401,6.81e-06,147.34,147.33,6.784]
[1749854687002,5.42751186,147.34,147.33,6.784]
[1749854687203,6.81e-06,147.34,147.33,6.784]
[1749854690701,5.42582899,147.39,147.38,6.7817]
[1749854691808,5.42582899,147.39,147.37,6.82994674]
[1749854692115,6.83228273,147.4,147.37,6.82994674]
[1749854692407,5.4374988,147.39,147.37,6.82994674]
[1749854692607,6.83228273,147.4,147.37,6.82994674]
[1749854692804,5.43719371,147.39,147.37,6.82994674]
[1749854693007,0.05138273,147.4,147.38,6.7817]
[1749854693212,5.43904961,147.39,147.38,6.7817]
[1749854693408,0.05138273,147.4,147.38,6.7817]
[1749854694514,0.05138273,147.4,147.39,6.7812]
[1749854694712,5.48877654,147.4,147.39,6.7812]
[1749854695413,0.05138273,147.4,147.39,6.7812]
[1749854695605,0.05138273,147.4,147.39,40.3612]
[1749854698113,6.34624481,147.48,147.39,33.58]
[1749854698307,5.43525766,147.47,147.39,33.58]
[1749854698502,5.43525766,147.46,147.39,33.58]
[1749854698703,6.34624481,147.49,147.42,6.7796]
[1749854699013,5.43218121,147.48,147.39,33.58]
[1749854699209,0.04522151,147.45,147.42,0.04657036]
[1749854699707,0.04522151,147.45,147.43,6.7791]
[1749854702117,0.04522151,147.45,147.44,6.7789]
[1749854705722,0.04522151,147.45,147.43,6.7791]
[1749854706918,0.04522151,147.45,147.44,6.7789]
[1749854708810,0.04522151,147.45,147.43,6.7791]
[1749854709007,0.04522151,147.45,147.42,0.04657036]
[1749854709412,0.04522151,147.45,147.43,6.7791]
[1749854711213,0.04522151,147.45,147.44,6.7789]
[1749854712311,0.04522151,147.45,147.42,0.04657036]
[1749854712923,0.04522151,147.45,147.43,6.7791]
[1749854713123,0.04522151,147.45,147.42,0.04657036]
[1749854714720,0.04522151,147.45,147.44,6.7789]
[1749854719223,0.04522151,147.45,147.43,6.7792]
[1749854719423,0.04522151,147.45,147.42,0.04657036]
[1749854719928,0.04522151,147.45,147.44,6.7789]
[1749854722228,0.04522151,147.45,147.43,6.7792]
[1749854722427,0.04522151,147.45,147.42,0.04657036]
[1749854723229,6.82392151,147.45,147.42,0.04657036]
[1749854724329,6.82392151,147.45,147.43,6.7794]
[1749854725127,6.82392151,147.45,147.42,6.82617036]
[1749854725333,0.04522151,147.45,147.42,0.04657036]
[1749854726228,6.7794,147.43,147.42,0.04657036]
[1749854727635,6.7792,147.44,147.42,0.04657036]
[1749854728039,0.04522151,147.45,147.42,0.04657036]
[1749854728229,6.7789,147.44,147.42,0.04657036]
[1749854730441,6.7789,147.44,147.42,6.82637036]
[1749854730938,6.7789,147.44,147.42,0.04657036]
[1749854732145,6.7789,147.44,147.42,6.82637036]
[1749854732435,6.7789,147.44,147.42,0.04657036]
[1749854733042,5.44813514,147.43,147.42,0.04657036]
[1749854734648,5.44813514,147.43,147.42,6.82647036]
[1749854736338,5.44813514,147.43,147.42,0.04657036]
[1749854737948,5.45227021,147.43,147.42,0.04657036]
[1749854738952,5.45227021,147.43,147.42,6.82647036]
[1749854743954,5.45227021,147.43,147.42,0.04657036]
[1749854744754,12.23167021,147.43,147.42,0.04657036]
[1749854747557,5.45227021,147.43,147.42,0.04657036]
[1749854748562,12.23167021,147.43,147.42,0.04657036]
[1749854750066,12.23167021,147.43,147.36,48.059]
[1749854750067,6.7809,147.4,147.36,48.059]
[1749854750751,6.7805,147.41,147.36,48.059]
[1749854750956,0.0451885,147.4,147.37,0.04437099]
[1749854751363,0.0451885,147.4,147.38,6.7814]
[1749854752067,6.8259885,147.4,147.38,6.7814]
[1749854752260,0.0451885,147.4,147.38,6.7814]
[1749854752666,0.0451885,147.4,147.37,6.82627099]
[1749854752861,0.0451885,147.4,147.37,0.04437099]
[1749854753173,12.23154926,147.39,147.37,0.04437099]
[1749854753465,6.7815,147.39,147.37,0.04437099]
[1749854754663,6.7815,147.39,147.37,6.82627099]
[1749854754868,6.8261885,147.4,147.37,6.82627099]
[1749854755062,5.44823059,147.39,147.37,6.82627099]
[1749854755369,6.8261885,147.4,147.37,6.82627099]
[1749854756160,6.8261885,147.4,147.38,6.7816]
[1749854757959,0.0451885,147.4,147.39,6.7812]
[1749854758459,5.48082649,147.4,147.39,6.7812]
[1749854759966,5.48082649,147.4,147.38,6.7815]
[1749854760167,6.8263885,147.4,147.37,0.04437099]
[1749854761868,0.0451885,147.4,147.37,0.04437099]
[1749854762454,0.0451885,147.4,147.38,6.7814]
[1749854762966,6.8260885,147.4,147.38,6.7814]
[1749854764069,6.8260885,147.4,147.37,6.82627099]
[1749854765072,6.8260885,147.4,147.38,6.7815]
[1749854767371,6.8260885,147.4,147.37,6.82617099]
[1749854767971,5.44214394,147.39,147.37,6.82617099]
[1749854768173,6.8260885,147.4,147.37,6.82617099]
[1749854768471,5.44207175,147.39,147.37,6.82617099]
[1749854768675,6.8260885,147.4,147.38,6.7816]
[1749854768975,0.0451885,147.4,147.37,0.04437099]
[1749854769176,33.54,147.46,147.37,4.46987099]
[1749854769472,40.3182,147.46,147.42,6.7796]
[1749854769976,33.54,147.46,147.43,6.7792]